fUST/lending_fUST_20250724
["ID","MTS","AMOUNT","RATE_DAILY","PERIOD"]
[374470357,1753312250596,-1674.34,0.00021369,2]
[374470358,1753312250606,-460.0,0.00021369,2]
[374470359,1753312250616,-532.08,0.00021369,2]
[374470360,1753312250625,-460.0,0.00021369,2]
[374470361,1753312250635,-1464.12,0.00021369,2]
[374470362,1753312250644,-1278.79,0.00021369,2]
[374470363,1753312250654,-460.0,0.00021369,2]
[374470364,1753312250663,-460.0,0.00021369,2]
[374470365,1753312250673,-184.21,0.00021369,2]
[374470366,1753312250683,-861.74,0.00021369,2]
[374470367,1753312250692,-460.0,0.00021369,2]
[374470368,1753312250705,-460.0,0.00021369,2]
[374470369,1753312250715,-460.0,0.00021369,2]
[374470370,1753312250725,-460.0,0.00021369,2]
[374470371,1753312250736,-460.0,0.00021369,2]
[374470372,1753312250746,-917.78,0.00021369,2]
[374470373,1753312250755,-460.0,0.00021369,2]
[374470374,1753312250765,-1212.98,0.00021369,2]
[374470375,1753312250775,-800.45,0.00021369,2]
[374470376,1753312250785,-460.0,0.00021369,2]
[374470377,1753312250795,-460.0,0.00021369,2]
[374470378,1753312250804,-460.0,0.00021369,2]
[374470379,1753312250813,-505.49,0.00021369,2]
[374470380,1753312250823,-460.0,0.00021369,2]
[374470381,1753312250832,-460.0,0.00021369,2]
[374470382,1753312250841,-868.55,0.00021369,2]
[374470383,1753312250851,-500.0,0.00021375,2]
[374470384,1753312250861,-500.0,0.00021442,2]
[374470385,1753312250873,-251.4,0.00021467,5]
[374470386,1753312250883,-500.0,0.00021487,2]
[374470387,1753312250893,-3000.0,0.000215,2]
[374470388,1753312250903,-3671.761104,0.0002151,2]
[374470389,1753312250914,-220.0,0.00021535,2]
[374470390,1753312250926,-460.0,0.00021643,2]
[374470391,1753312250938,-460.0,0.00021643,2]
[374470392,1753312250948,-542.37,0.00021643,2]
[374470393,1753312250958,-2615.42,0.00021643,2]
[374470394,1753312250968,-460.0,0.00021643,2]
[374470395,1753312250978,-460.0,0.00021643,2]
[374470396,1753312250988,-460.0,0.00021643,2]
[374470397,1753312250998,-3061.89,0.00021643,2]
[374470398,1753312251009,-1674.34,0.00021643,2]
[374470399,1753312251019,-460.0,0.00021643,2]
[374470400,1753312251028,-460.0,0.00021643,2]
[374470401,1753312251039,-1464.12,0.00021643,2]
[374470402,1753312251048,-1278.79,0.00021643,2]
[374470403,1753312251058,-460.0,0.00021643,2]
[374470404,1753312251068,-460.0,0.00021643,2]
[374470405,1753312251077,-861.74,0.00021643,2]
[374470406,1753312251087,-243.02,0.00021643,2]
[374470407,1753312251097,-460.0,0.00021643,2]
[374470408,1753312251106,-460.0,0.00021643,2]
[374470409,1753312251116,-460.0,0.00021643,2]
[374470410,1753312251126,-460.0,0.00021643,2]
[374470411,1753312251135,-917.78,0.00021643,2]
[374470412,1753312251145,-358.51447499,0.00021643,2]
[374470413,1753312251155,-1212.98,0.00021643,2]
[374470414,1753312251164,-173.88265038,0.00021643,2]
[374470415,1753312251174,-800.45,0.00021643,2]
[374470416,1753312251183,-460.0,0.00021643,2]
[374470417,1753312251192,-311.6,0.00021643,2]
[374470418,1753312251202,-505.49,0.00021643,2]
[374470419,1753312251211,-460.0,0.00021643,2]
[374470420,1753312251220,-551.56246789,0.00021643,2]
[374470421,1753312251241,-868.55,0.00021643,2]
[374470422,1753312251261,-251.4,0.00021779,5]
[374470423,1753312251283,-500.0,0.00021865,2]
[374470424,1753312251304,-1500.0,0.00021865,2]
[374470425,1753312251326,-500.0,0.00021883,2]
[374470426,1753312251347,-1000.0,0.00021883,2]
[374470427,1753312251370,-500.01884122,0.00021883,2]
[374470428,1753312251391,-1000.0,0.00021883,2]
[374470429,1753312251413,-500.0,0.00021883,2]
[374470430,1753312251442,-500.0,0.00021883,2]
[374470431,1753312251465,-506.13422881,0.00021883,2]
[374470432,1753312251488,-500.0,0.00021883,2]
[374470433,1753312251509,-151.0,0.000219,3]
[374470434,1753312251529,-150.0,0.00021909,2]
[374470435,1753312251550,-584.22,0.00021917,2]
[374470436,1753312251569,-460.0,0.00021917,2]
[374470437,1753312251579,-2615.42,0.00021917,2]
[374470438,1753312251588,-460.0,0.00021917,2]
[374470439,1753312251598,-233.4,0.00021917,2]
[374470440,1753312251607,-460.0,0.00021917,2]
[374470441,1753312251617,-3061.89,0.00021917,2]
[374470442,1753312251736,-1674.34,0.00021917,2]
[374470443,1753312251746,-460.0,0.00021917,2]
[374470444,1753312251756,-460.0,0.00021917,2]
[374470445,1753312251765,-1464.12,0.00021917,2]
[374470446,1753312251776,-1278.79,0.00021917,2]
[374470447,1753312251785,-460.0,0.00021917,2]
[374470448,1753312251795,-460.0,0.00021917,2]
[374470449,1753312251804,-861.74,0.00021917,2]
[374470450,1753312251813,-460.0,0.00021917,2]
[374470451,1753312251823,-460.0,0.00021917,2]
[374470452,1753312251832,-215.14,0.00021917,2]
[374470453,1753312251841,-460.0,0.00021917,2]
[374470454,1753312251851,-917.78,0.00021917,2]
[374470455,1753312251861,-1212.98,0.00021917,2]
[374470456,1753312251871,-800.45,0.00021917,2]
[374470457,1753312251880,-460.0,0.00021917,2]
[374470458,1753312251889,-505.49,0.00021917,2]
[374470459,1753312251899,-460.0,0.00021917,2]
[374470460,1753312251909,-868.55,0.00021917,2]
[374470461,1753312251919,-1000.0,0.00021923,2]
[374470462,1753312251928,-1757.12339173,0.00021939,2]
[374470463,1753312251939,-18631.43,0.00022,7]
[374470464,1753312251948,-4140.4,0.00022,7]
[374470465,1753312251957,-1823.38,0.00022,7]
[374470466,1753312251967,-155.0,0.00022,2]
[374470467,1753312251976,-251.4,0.00022091,5]
[374470468,1753312251985,-407.0,0.00022129,2]
[374470469,1753312251995,-420.288,0.00022129,2]
[374470470,1753312252005,-460.0,0.00022191,2]
[374470471,1753312252014,-2615.42,0.00022191,2]
[374470472,1753312252024,-460.0,0.00022191,2]
[374470473,1753312252033,-460.0,0.00022191,2]
[374470474,1753312252043,-3061.89,0.00022191,2]
[374470475,1753312252053,-1674.34,0.00022191,2]
[374470476,1753312252062,-460.0,0.00022191,2]
[374470477,1753312252071,-460.0,0.00022191,2]
[374470478,1753312252082,-1464.12,0.00022191,2]
[374470479,1753312252092,-1278.79,0.00022191,2]
[374470480,1753312252101,-592.32,0.00022191,2]
[374470481,1753312252111,-460.0,0.00022191,2]
[374470482,1753312252120,-861.74,0.00022191,2]
[374470483,1753312252129,-460.0,0.00022191,2]
[374470484,1753312252139,-290.21,0.00022191,2]
[374470485,1753312252148,-460.0,0.00022191,2]
[374470486,1753312252158,-917.78,0.00022191,2]
[374470487,1753312252169,-1212.98,0.00022191,2]
[374470488,1753312252178,-560.23623976,0.00022191,2]
[374470489,1753312252282,-240.21376024,0.00022191,2]
[374470490,1753312252291,-460.0,0.00022191,2]
[374470491,1753312252301,-505.49,0.00022191,2]
[374470492,1753312252311,-460.0,0.00022191,2]
[374470493,1753312252321,-868.55,0.00022191,2]
[374470494,1753312252330,-166.0,0.00022318,2]
[374470495,1753312252340,-251.4,0.00022403,5]
[374470496,1753312252349,-155.79189862,0.00022405,5]
[374470497,1753312252359,-1500.0,0.00022413,2]
[374470498,1753312252369,-1500.0,0.00022431,2]
[374470499,1753312252381,-460.0,0.00022465,2]
[374470500,1753312252391,-2615.42,0.00022465,2]
[374470501,1753312252400,-460.0,0.00022465,2]
[374470502,1753312252410,-1738.3,0.00022465,2]
[374470503,1753312252420,-308.03,0.00022465,2]
[374470504,1753312252429,-3061.89,0.00022465,2]
[374470505,1753312252439,-1674.34,0.00022465,2]
[374470506,1753312252449,-460.0,0.00022465,2]
[374470507,1753312252458,-460.0,0.00022465,2]
[374470508,1753312252467,-1464.12,0.00022465,2]
[374470509,1753312252476,-1278.79,0.00022465,2]
[374470510,1753312252486,-460.0,0.00022465,2]
[374470511,1753312252495,-861.74,0.00022465,2]
[374470512,1753312252505,-460.0,0.00022465,2]
[374470513,1753312252515,-460.0,0.00022465,2]
[374470514,1753312252524,-917.78,0.00022465,2]
[374470515,1753312252533,-1212.98,0.00022465,2]
[374470516,1753312252543,-800.45,0.00022465,2]
[374470517,1753312252552,-544.71699781,0.00022465,2]
[374470518,1753312252561,-505.49,0.00022465,2]
[374470519,1753312252571,-460.0,0.00022465,2]
[374470520,1753312252581,-868.55,0.00022465,2]
[374470521,1753312252590,-151.0,0.000225,6]
[374470522,1753312252599,-513.41333819,0.00022566,6]
[374470523,1753312252609,-150.93,0.00022707,2]
[374470524,1753312252618,-150.103,0.00022707,2]
[374470525,1753312252627,-251.4,0.00022715,6]
[374470526,1753312252637,-460.0,0.00022739,2]
[374470527,1753312252646,-2615.42,0.00022739,2]
[374470528,1753312252656,-460.0,0.00022739,2]
[374470529,1753312252667,-3061.89,0.00022739,2]
[374470530,1753312252677,-1674.34,0.00022739,2]
[374470531,1753312252686,-460.0,0.00022739,2]
[374470532,1753312252696,-460.0,0.00022739,2]
[374470533,1753312252708,-1464.12,0.00022739,2]
[374470534,1753312252718,-1278.79,0.00022739,2]
[374470535,1753312252727,-460.0,0.00022739,2]
[374470536,1753312252737,-861.74,0.00022739,2]
[374470537,1753312252747,-460.0,0.00022739,2]
[374470538,1753312252757,-460.0,0.00022739,2]
[374470539,1753312252766,-917.78,0.00022739,2]
[374470540,1753312252776,-1212.98,0.00022739,2]
[374470541,1753312252785,-800.45,0.00022739,2]
[374470542,1753312252794,-505.49,0.00022739,2]
[374470543,1753312252803,-460.0,0.00022739,2]
[374470544,1753312252813,-868.55,0.00022739,2]
[374470545,1753312252823,-150.0,0.00022759,2]
[374470546,1753312252832,-150.0,0.00022759,2]
[374470547,1753312252842,-648.0,0.00022759,2]
[374470548,1753312252851,-2157.0,0.00022759,2]
[374470549,1753312252860,-969.0,0.00022759,2]
[374470550,1753312252870,-150.0,0.00022821,2]
[374470551,1753312252879,-1380.96517336,0.00022979,2]
[374470552,1753312252889,-3000.0,0.00023,2]
[374470553,1753312252898,-500.0,0.00023,8]
[374470554,1753312252908,-1883.67,0.00023,2]
[374470555,1753312252918,-150.0,0.00023,10]
[374470556,1753312252928,-160.0,0.00023,2]
[374470557,1753312252937,-3000.0,0.0002301,2]
[374470558,1753312252947,-152.709429,0.00023012,3]
[374470559,1753312252957,-152.709429,0.00023012,3]
[374470560,1753312252967,-460.0,0.00023013,2]
[374470561,1753312252976,-2615.42,0.00023013,2]
[374470562,1753312252985,-479.28946406,0.00023013,2]
[374470563,1753312252995,-3061.89,0.00023013,2]
[374470564,1753312253005,-1674.34,0.00023013,2]
[374470565,1753312253015,-460.0,0.00023013,2]
[374470566,1753312253024,-460.0,0.00023013,2]
[374470567,1753312253034,-1464.12,0.00023013,2]
[374470568,1753312253043,-1278.79,0.00023013,2]
[374470569,1753312253052,-460.0,0.00023013,2]
[374470570,1753312253061,-861.74,0.00023013,2]
[374470571,1753312253071,-460.0,0.00023013,2]
[374470572,1753312253080,-460.0,0.00023013,2]
[374470573,1753312253090,-917.78,0.00023013,2]
[374470574,1753312253100,-1212.98,0.00023013,2]
[374470575,1753312253113,-800.45,0.00023013,2]
[374470576,1753312253123,-505.49,0.00023013,2]
[374470577,1753312253132,-460.0,0.00023013,2]
[374470578,1753312253141,-868.55,0.00023013,2]
[374470579,1753312253151,-155.0,0.00023014,7]
[374470580,1753312253160,-3000.0,0.0002302,2]
[374470581,1753312253171,-251.4,0.00023027,6]
[374470582,1753312253181,-3000.0,0.0002303,2]
[374470583,1753312253190,-3000.0,0.0002304,2]
[374470584,1753312253200,-3000.0,0.0002305,2]
[374470585,1753312253210,-3000.0,0.0002306,2]
[374470586,1753312253220,-3000.0,0.0002307,2]
[374470587,1753312253229,-3000.0,0.0002308,2]
[374470588,1753312253239,-3000.0,0.0002309,2]
[374470589,1753312253248,-3000.0,0.000231,2]
[374470590,1753312253258,-151.0,0.000231,6]
[374470591,1753312253267,-280.55485677,0.00023107,2]
[374470592,1753312253276,-151.0,0.00023107,2]
[374470593,1753312253286,-3818.04135009,0.00023107,2]
[374470594,1753312253295,-151.0,0.00023107,2]
[374470595,1753312253305,-151.0,0.00023107,2]
[374470596,1753312253314,-151.0,0.00023107,2]
[374470597,1753312253324,-215.0738,0.00023107,2]
[374470598,1753312253333,-151.0,0.00023107,2]
[374470599,1753312253343,-151.0,0.00023107,2]
[374470600,1753312253352,-151.0,0.00023107,2]
[374470601,1753312253362,-151.0,0.00023107,2]
[374470602,1753312253372,-151.0,0.00023107,2]
[374470603,1753312253381,-151.0,0.00023107,2]
[374470604,1753312253391,-151.0,0.00023107,2]
[374470605,1753312253401,-151.0,0.00023107,2]
[374470606,1753312253411,-151.0,0.00023107,2]
[374470607,1753312253421,-151.0,0.00023107,2]
[374470608,1753312253430,-151.0,0.00023107,2]
[374470609,1753312253440,-151.0,0.00023107,2]
[374470610,1753312253449,-151.0,0.00023107,2]
[374470611,1753312253458,-151.0,0.00023107,2]
[374470612,1753312253468,-22769.71930789,0.00023107,2]
[374470613,1753312253477,-3000.0,0.0002311,2]
[374470614,1753312253487,-3000.0,0.0002312,2]
[374470615,1753312253496,-3045.56405226,0.00023126,2]
[374470616,1753312253505,-3000.0,0.0002313,2]
[374470617,1753312253515,-3000.0,0.0002314,2]
[374470618,1753312253524,-3000.0,0.0002315,2]
[374470619,1753312253533,-152.709429,0.00023155,6]
[374470620,1753312253542,-3000.0,0.0002316,2]
[374470621,1753312253552,-3000.0,0.0002317,2]
[374470622,1753312253562,-500.0,0.00023173,2]
[374470623,1753312253571,-500.0,0.00023173,2]
[374470624,1753312253582,-500.0,0.00023173,2]
[374470625,1753312253595,-500.55403074,0.00023173,2]
[374470626,1753312253604,-500.0,0.00023173,2]
[374470627,1753312253642,-500.0,0.00023173,2]
[374470628,1753312253651,-501.4575332,0.00023173,2]
[374470629,1753312253661,-500.0,0.00023173,2]
[374470630,1753312253671,-3000.0,0.0002318,2]
[374470631,1753312253680,-3000.0,0.0002319,2]
[374470632,1753312253689,-231.11583447,0.0002319,3]
[374470633,1753312253702,-1406.89840428,0.0002319,3]
[374470634,1753312253711,-215.84326551,0.0002319,3]
[374470635,1753312253720,-160.0,0.0002319,3]
[374470636,1753312253730,-840.06856235,0.0002319,3]
[374470637,1753312253740,-160.0,0.0002319,3]
[374470638,1753312253749,-3000.0,0.000232,2]
[374470639,1753312253758,-18631.43,0.000232,7]
[374470640,1753312253767,-4140.4,0.000232,7]
[374470641,1753312253778,-1823.38,0.000232,7]
[374470642,1753312253788,-3000.0,0.0002321,2]
[374470643,1753312253799,-3000.0,0.0002322,2]
[374470644,1753312253819,-3000.0,0.0002323,2]
[374470645,1753312253828,-3000.0,0.0002324,2]
[374470646,1753312253837,-3000.0,0.0002325,2]
[374470647,1753312253847,-3000.0,0.0002326,2]
[374470648,1753312253856,-3000.0,0.0002327,2]
[374470649,1753312253865,-3000.0,0.0002328,2]
[374470650,1753312253875,-460.0,0.00023287,2]
[374470651,1753312253895,-2615.42,0.00023287,2]
[374470652,1753312253904,-3061.89,0.00023287,2]
[374470653,1753312253914,-1674.34,0.00023287,2]
[374470654,1753312253923,-460.0,0.00023287,2]
[374470655,1753312253933,-460.0,0.00023287,2]
[374470656,1753312253943,-152.709429,0.00023287,7]
[374470657,1753312253952,-1464.12,0.00023287,2]
[374470658,1753312253961,-152.709429,0.00023287,7]
[374470659,1753312253971,-1278.79,0.00023287,2]
[374470660,1753312253981,-427.43,0.00023287,2]
[374470661,1753312253990,-861.74,0.00023287,2]
[374470662,1753312253999,-460.0,0.00023287,2]
[374470663,1753312254009,-460.0,0.00023287,2]
[374470664,1753312254018,-917.78,0.00023287,2]
[374470665,1753312254028,-1212.98,0.00023287,2]
[374470666,1753312254037,-800.45,0.00023287,2]
[374470667,1753312254046,-505.49,0.00023287,2]
[374470668,1753312254056,-460.0,0.00023287,2]
[374470669,1753312254065,-868.55,0.00023287,2]
[374470670,1753312254076,-3000.0,0.0002329,2]
[374470671,1753312254085,-3000.0,0.000233,2]
[374470672,1753312254094,-3000.0,0.0002331,2]
[374470673,1753312254104,-3000.0,0.0002332,2]
[374470674,1753312254113,-3000.0,0.0002333,2]
[374470675,1753312254123,-251.4,0.00023339,6]
[374470676,1753312254132,-3000.0,0.0002334,2]
[374470677,1753312254141,-3000.0,0.0002335,2]
[374470678,1753312254151,-3000.0,0.0002336,2]
[374470679,1753312254160,-1757.12339173,0.0002337,2]
[374470680,1753312254170,-3000.0,0.0002337,2]
[374470681,1753312254179,-3000.0,0.0002338,2]
[374470682,1753312254188,-3000.0,0.0002339,2]
[374470683,1753312254197,-3000.0,0.000234,2]
[374470684,1753312254206,-28997.16,0.000234,2]
[374470685,1753312254216,-3000.0,0.0002341,2]
[374470686,1753312254226,-3000.0,0.0002342,2]
[374470687,1753312254235,-3000.0,0.0002343,2]
[374470688,1753312254244,-3260.15799,0.0002344,2]
[374470689,1753312254254,-152.709429,0.00023483,3]
[374470690,1753312254263,-152.709429,0.00023483,3]
[374470691,1753312254272,-3045.56405226,0.0002354,2]
[374470692,1753312254282,-200.0,0.00023561,2]
[374470693,1753312254291,-200.0,0.00023561,2]
[374470694,1753312254300,-460.0,0.00023561,2]
[374470695,1753312254309,-183.46287209,0.00023561,2]
[374470696,1753312254318,-2615.42,0.00023561,2]
[374470697,1753312254328,-3061.89,0.00023561,2]
[374470698,1753312254338,-1674.34,0.00023561,2]
[374470699,1753312254347,-460.0,0.00023561,2]
[374470700,1753312254357,-460.0,0.00023561,2]
[374470701,1753312254367,-1464.12,0.00023561,2]
[374470702,1753312254376,-1278.79,0.00023561,2]
[374470703,1753312254385,-861.74,0.00023561,2]
[374470704,1753312254394,-460.0,0.00023561,2]
[374470705,1753312254403,-460.0,0.00023561,2]
[374470706,1753312254412,-917.78,0.00023561,2]
[374470707,1753312254422,-1212.98,0.00023561,2]
[374470708,1753312254431,-800.45,0.00023561,2]
[374470709,1753312254441,-505.49,0.00023561,2]
[374470710,1753312254450,-460.0,0.00023561,2]
[374470711,1753312254459,-868.55,0.00023561,2]
[374470712,1753312254469,-231.23,0.00023606,2]
[374470713,1753312254479,-500.0,0.00023634,2]
[374470714,1753312254489,-306.0,0.00023644,2]
[374470715,1753312254499,-159.8396335,0.00023644,2]
[374470716,1753312254509,-251.4,0.00023651,6]
[374470717,1753312254519,-3045.56405226,0.00023676,2]
[374470718,1753312254529,-690.28619666,0.00023696,12]
[374470719,1753312254538,-151.0,0.000237,7]
[374470720,1753312254548,-487.26539813,0.00023721,2]
[374470721,1753312254557,-719.84913514,0.00023721,2]
[374470722,1753312254567,-500.0,0.00023721,2]
[374470723,1753312254576,-150.0,0.00023727,2]
[374470724,1753312254586,-152.709429,0.0002379,7]
[374470725,1753312254595,-152.709429,0.0002379,7]
[374470726,1753312254605,-460.0,0.00023835,2]
[374470727,1753312254614,-2615.42,0.00023835,2]
[374470728,1753312254623,-3061.89,0.00023835,2]
[374470729,1753312254633,-1674.34,0.00023835,2]
[374470730,1753312254642,-274.7,0.00023835,2]
[374470731,1753312254651,-460.0,0.00023835,2]
[374470732,1753312254660,-1464.12,0.00023835,2]
[374470733,1753312254670,-1278.79,0.00023835,2]
[374470734,1753312254680,-861.74,0.00023835,2]
[374470735,1753312254689,-460.0,0.00023835,2]
[374470736,1753312254701,-460.0,0.00023835,2]
[374470737,1753312254710,-917.78,0.00023835,2]
[374470738,1753312254720,-1212.98,0.00023835,2]
[374470739,1753312254729,-800.45,0.00023835,2]
[374470740,1753312254739,-505.49,0.00023835,2]
[374470741,1753312254749,-151.0,0.00023835,7]
[374470742,1753312254758,-460.0,0.00023835,2]
[374470743,1753312254768,-868.55,0.00023835,2]
[374470744,1753312254778,-1282.41406508,0.000239,2]
[374470745,1753312254788,-152.709429,0.00023954,3]
[374470746,1753312254797,-152.709429,0.00023954,3]
[374470747,1753312254807,-251.4,0.00023964,7]
[374470748,1753312254817,-231.11583447,0.00024,7]
[374470749,1753312254827,-215.84326551,0.00024,7]
[374470750,1753312254837,-160.0,0.00024,7]
[374470751,1753312254847,-160.0,0.00024,7]
[374470752,1753312254857,-840.06856235,0.00024,7]
[374470753,1753312254867,-160.0,0.00024,7]
[374470754,1753312254877,-3045.56405226,0.00024007,2]
[374470755,1753312254887,-460.0,0.00024109,2]
[374470756,1753312254897,-2615.42,0.00024109,2]
[374470757,1753312254906,-3061.89,0.00024109,2]
[374470758,1753312254916,-1674.34,0.00024109,2]
[374470759,1753312254926,-460.0,0.00024109,2]
[374470760,1753312254935,-1464.12,0.00024109,2]
[374470761,1753312254945,-1278.79,0.00024109,2]
[374470762,1753312254954,-861.74,0.00024109,2]
[374470763,1753312254963,-494.18,0.00024109,2]
[374470764,1753312254973,-460.0,0.00024109,2]
[374470765,1753312254982,-917.78,0.00024109,2]
[374470766,1753312254991,-1212.98,0.00024109,2]
[374470767,1753312255000,-800.45,0.00024109,2]
[374470768,1753312255010,-505.49,0.00024109,2]
[374470769,1753312255020,-370.02578522,0.00024109,2]
[374470770,1753312255029,-868.55,0.00024109,2]
[374470771,1753312255039,-500.0,0.00024126,2]
[374470772,1753312255049,-500.0,0.00024132,2]
[374470773,1753312255058,-3045.56405226,0.00024138,2]
[374470774,1753312255068,-158.0,0.00024164,7]
[374470775,1753312255078,-152.709429,0.00024198,2]
[374470776,1753312255087,-231.23,0.000242,2]
[374470777,1753312255096,-2200.0,0.00024206,2]
[374470778,1753312255106,-152.709429,0.00024211,6]
[374470779,1753312255115,-500.0,0.00024265,2]
[374470780,1753312255124,-472.88670851,0.00024268,2]
[374470781,1753312255134,-6172.65,0.00024269,10]
[374470782,1753312255143,-251.4,0.00024276,7]
[374470783,1753312255153,-152.709429,0.00024294,7]
[374470784,1753312255163,-152.709429,0.00024294,7]
[374470785,1753312255172,-151.0,0.000243,7]
[374470786,1753312255182,-151.0,0.000243,10]
[374470787,1753312255192,-353.67228,0.00024329,7]
[374470788,1753312255201,-353.67228,0.00024329,7]
[374470789,1753312255211,-429.674968,0.00024356,2]
[374470790,1753312255220,-298.0,0.00024378,2]
[374470791,1753312255230,-223.863048,0.00024383,7]
[374470792,1753312255239,-223.863048,0.00024383,7]
[374470793,1753312255250,-361.598047,0.00024383,7]
[374470794,1753312255259,-361.598047,0.00024383,7]
[374470795,1753312255269,-151.0,0.00024383,7]
[374470796,1753312255279,-151.0,0.00024383,7]
[374470797,1753312255288,-507.49,0.00024383,2]
[374470798,1753312255297,-2615.42,0.00024383,2]
[374470799,1753312255307,-3061.89,0.00024383,2]
[374470800,1753312255316,-1674.34,0.00024383,2]
[374470801,1753312255327,-151.0,0.00024383,7]
[374470802,1753312255336,-460.0,0.00024383,2]
[374470803,1753312255346,-1464.12,0.00024383,2]
[374470804,1753312255355,-1278.79,0.00024383,2]
[374470805,1753312255365,-861.74,0.00024383,2]
[374470806,1753312255375,-151.0,0.00024383,7]
[374470807,1753312255385,-151.0,0.00024383,7]
[374470808,1753312255394,-151.0,0.00024383,7]
[374470809,1753312255404,-151.0,0.00024383,7]
[374470810,1753312255414,-151.0,0.00024383,7]
[374470811,1753312255424,-151.0,0.00024383,7]
[374470812,1753312255433,-151.0,0.00024383,7]
[374470813,1753312255443,-151.0,0.00024383,7]
[374470814,1753312255452,-267.40305066,0.00024383,2]
[374470815,1753312255468,-192.59694934,0.00024383,2]
[374470816,1753312255478,-156.974998,0.00024383,7]
[374470817,1753312255488,-145.55046466,0.00024383,2]
[374470818,1753312255501,-602.76483606,0.00024383,2]
[374470819,1753312255512,-169.46469928,0.00024383,2]
[374470820,1753312255522,-1212.98,0.00024383,2]
[374470821,1753312255532,-800.45,0.00024383,2]
[374470822,1753312255542,-505.49,0.00024383,2]
[374470823,1753312255551,-151.0,0.00024383,7]
[374470824,1753312255561,-868.55,0.00024383,2]
[374470825,1753312255570,-11817.71824576,0.000244,7]
[374470826,1753312255606,-6813.71175424,0.000244,7]
[374470827,1753312255617,-4140.4,0.000244,7]
[374470828,1753312255626,-1823.38,0.000244,7]
[374470829,1753312255636,-151.0,0.000244,7]
[374470830,1753312255646,-151.0,0.000244,7]
[374470831,1753312255657,-588.672875,0.000244,7]
[374470832,1753312255667,-588.672875,0.000244,7]
[374470833,1753312255676,-642.0,0.000244,2]
[374470834,1753312255687,-314.26324,0.00024401,8]
[374470835,1753312255700,-152.709429,0.00024425,3]
[374470836,1753312255710,-152.709429,0.00024425,3]
[374470837,1753312255721,-500.0,0.00024443,2]
[374470838,1753312255731,-153.0,0.00024466,2]
[374470839,1753312255742,-153.0,0.00024466,2]
[374470840,1753312255752,-153.0,0.00024466,2]
[374470841,1753312255762,-153.0,0.00024466,2]
[374470842,1753312255773,-508.32637467,0.0002447,2]
[374470843,1753312255783,-500.0,0.00024471,2]
[374470844,1753312255793,-223.0315306,0.00024476,2]
[374470845,1753312255803,-653.3732873,0.00024493,2]
[374470846,1753312255812,-500.0,0.0002451,2]
[374470847,1753312255822,-500.0,0.00024517,2]
[374470848,1753312255832,-500.0,0.00024521,2]
[374470849,1753312255842,-500.0,0.00024529,2]
[374470850,1753312255852,-500.0,0.00024533,2]
[374470851,1753312255862,-500.0,0.00024565,2]
[374470852,1753312255872,-251.4,0.00024588,7]
[374470853,1753312255882,-3045.56405227,0.00024599,2]
[374470854,1753312255892,-28997.16,0.000246,2]
[374470855,1753312255903,-500.0,0.00024601,2]
[374470856,1753312255913,-500.0,0.0002463,2]